[Event "4NCL 2021-22"]
[Site "England"]
[Date "2022.03.27"]
[Round "6.7"]
[White "McDonald, Neil"]
[Black "Golding, Alex"]
[Result "1-0"]
[ECO "C84"]
[WhiteElo "2408"]
[BlackElo "2331"]
[Annotator "NA"]
[PlyCount "127"]
[EventDate "2021.11.27"]
[EventType "team-tourn"]
[EventCountry "ENG"]
[SourceTitle "playchess.com"]
[Source "ChessBase"]
[SourceQuality "1"]
[TimeControl "40/6000+30:3000+30"]

1. e4 {[%emt 0:00:08]} e5 {[%emt 0:00:14]} 2. Nf3 {[%emt 0:00:07]} Nc6 {[%emt 0:00:04]} 3. Bb5 {[%emt 0:00:06]} a6 {[%emt 0:00:12]} 4. Ba4 {[%emt 0:00:05]} Nf6 {[%emt 0:00:06]} 5. d3 {[%emt 0:00:32]} b5 {[%emt 0:00:06]} 6. Bb3 {[%emt 0:00:05]} Be7 {[%emt 0:00:04]} 7. O-O {[%emt 0:01:11]} d6 {[%emt 0:00:04]} 8. a4 {[%emt 0:01:46]} Na5 {[%emt 0:01:25]} 9. axb5 {[%emt 0:09:18]} Nxb3 {[%emt 0:00:05]} 10. cxb3 {[%emt 0:00:08]} O-O {[%emt 0:01:16]} 11. Nc3 {[%emt 0:00:54]} Bb7 {[%emt 0:00:04]} 12. bxa6 {[%emt 0:01:38]} Rxa6 {[%emt 0:00:04]} 13. Rxa6 {[%emt 0:01:31]} Bxa6 {[%emt 0:00:04]} 14. Re1 {[%emt 0:01:40]} c6 {[%emt 0:04:49]} 15. d4 {[%emt 0:01:36]} Nd7 {[%emt 0:01:08]} 16. Be3 {[%emt 0:07:44]} Qa8 {[%emt 0:16:00]} 17. Qc2 {[%emt 0:04:30]} exd4 {[%emt 0:07:20]} (17... h6 $14) 18. Bxd4 {[%emt 0:03:25]} Bb7 {[%emt 0:00:54]} 19. Be3 {[%emt 0:29:09]} Re8 {[%emt 0:04:35]} 20. Rd1 {[%emt 0:03:08]} Bf8 {[%emt 0:00:12]} 21. Bf4 {[%emt 0:01:31]} d5 {[%emt 0:08:14]} 22. exd5 {[%emt 0:03:26]} cxd5 {[%emt 0:00:05]} 23. Qf5 {[%emt 0:08:55]} Nf6 {[%emt 0:14:36]} 24. Be5 {[%emt 0:01:07]} Be7 {[%emt 0:07:29] [#]} (24... d4 $14 25. Bxd4 (25. Bxf6 dxc3 26. Ng5 Be4 $16) 25... Rd8) 25. Bxf6 {[%emt 0:05:33]} ({White should play} 25. b4 $1 $16) 25... Bxf6 {[%emt 0:00:11]} 26. Nxd5 {[%emt 0:00:48]} Bxb2 {[%emt 0:04:43]} 27. h3 {[%emt 0:03:37]} g6 {[%emt 0:03:04]} 28. Qd7 {[%emt 0:02:46]} Bxd5 {[%emt 0:00:12]} 29. Qxd5 $14 {[%emt 0:01:30]} Qa7 {[%emt 0:03:14]} 30. Rd2 {[%emt 0:03:59]} Bc3 {[%emt 0:01:27]} 31. Rc2 {[%emt 0:01:30]} Bf6 {[%emt 0:01:21]} 32. Qc4 {[%emt 0:01:17]} Rb8 {[%emt 0:00:47]} 33. Re2 {[%emt 0:01:55]} Qa1+ {[%emt 0:02:20]} 34. Kh2 {[%emt 0:01:04]} Qd1 {[%emt 0:00:26]} 35. Re3 {[%emt 0:01:23]} Qd6+ {[%emt 0:01:27]} 36. g3 {[%emt 0:00:20]} h5 {[%emt 0:02:41]} 37. h4 {[%emt 0:00:36]} Kg7 {[%emt 0:00:39]} 38. Ng5 {[%emt 0:03:25]} Bxg5 {[%emt 0:00:34]} 39. hxg5 {[%emt 0:00:05]} Rb4 {[%emt 0:00:39]} 40. Qc3+ {[%emt 0:01:01]} Qd4 {[%emt 0:00:04]} 41. Kg2 {[%emt 0:52:48]} Qxc3 {[%emt 0:50:32]} 42. Rxc3 {[%emt 0:00:23]} Rb5 {[%emt 0:00:11]} 43. f4 {[%emt 0:00:12]} Rb7 {[%emt 0:00:05]} 44. Kf3 {[%emt 0:00:36]} f6 {[%emt 0:00:04]} 45. gxf6+ {[%emt 0:00:39]} Kxf6 {[%emt 0:00:04]} 46. Ke4 {[%emt 0:03:48]} Re7+ {[%emt 0:00:23]} 47. Kd3 {[%emt 0:00:00]} Rd7+ {[%emt 0:00:00]} 48. Kc2 {[%emt 0:00:00]} Kf5 {[%emt 0:00:00]} 49. Rc5+ {[%emt 0:00:00]} Ke4 {[%emt 0:00:00]} 50. Rg5 {[%emt 0:00:00]} Rc7+ {[%emt 0:00:00]} 51. Kb2 {[%emt 0:00:00]} Rc6 {[%emt 0:00:00]} 52. b4 {[%emt 0:00:00]} Kd4 {[%emt 0:00:00]} 53. b5 {[%emt 0:00:00]} Rf6 {[%emt 0:00:00]} 54. Kb3 {[%emt 0:00:00]} h4 {[%emt 0:00:00]} 55. gxh4 {[%emt 0:00:00]} Rxf4 {[%emt 0:00:00]} 56. Kb4 {[%emt 0:00:00]} Rxh4 {[%emt 0:00:00]} 57. b6 {[%emt 0:00:00]} Rh1 {[%emt 0:00:00]} 58. Kb5 {[%emt 0:00:00]} Rb1+ {[%emt 0:00:00]} 59. Kc6 {[%emt 0:00:00]} Rc1+ {[%emt 0:00:00]} 60. Kd7 {[%emt 0:00:00]} Rb1 {[%emt 0:00:00]} 61. Kc7 {[%emt 0:00:00]} Rc1+ {[%emt 0:00:00]} 62. Kb8 {[%emt 0:00:00]} Ke4 {[%emt 0:00:00]} 63. b7 {[%emt 0:00:00]} Kf4 {[%emt 0:00:00]} 64. Rxg6 {[%emt 0:00:00]} 1-0

[Event "4NCL 2021-22"]
[Site "England"]
[Date "2022.03.27"]
[Round "6.8"]
[White "Kalaiyalahan, Akshaya"]
[Black "Toma, Katarzyna"]
[Result "0-1"]
[ECO "D76"]
[WhiteElo "2208"]
[BlackElo "2420"]
[Annotator "NA"]
[PlyCount "116"]
[EventDate "2021.11.27"]
[EventType "team-tourn"]
[EventCountry "ENG"]
[SourceTitle "playchess.com"]
[Source "ChessBase"]
[SourceQuality "1"]
[TimeControl "40/6000+30:3000+30"]

1. Nf3 {[%emt 0:00:03]} Nf6 {[%emt 0:00:08]} 2. d4 {[%emt 0:00:11]} g6 {[%emt 0:00:20]} 3. g3 {[%emt 0:00:24]} Bg7 {[%emt 0:00:10]} 4. c4 {[%emt 0:00:15]} O-O {[%emt 0:00:26]} 5. Bg2 {[%emt 0:00:11]} d5 {[%emt 0:00:11]} 6. cxd5 {[%emt 0:00:25]} Nxd5 {[%emt 0:00:27]} 7. O-O {[%emt 0:00:25]} Nb6 {[%emt 0:00:25]} 8. Nc3 {[%emt 0:00:14]} Nc6 {[%emt 0:00:47]} 9. d5 {[%emt 0:00:44]} Na5 {[%emt 0:00:59]} 10. Qc2 {[%emt 0:00:33]} c6 {[%emt 0:03:35]} 11. dxc6 {[%emt 0:00:42]} Nxc6 {[%emt 0:00:06]} 12. Rd1 {[%emt 0:01:01]} Bd7 {[%emt 0:07:17]} 13. Bf4 {[%emt 0:16:38]} Qc8 {[%emt 0:15:04]} 14. Rac1 {[%emt 0:03:42]} Bh3 {[%emt 0:04:29]} 15. Bh1 {[%emt 0:11:08]} Qf5 {[%emt 0:10:21]} 16. Qxf5 {[%emt 0:11:04]} Bxf5 {[%emt 0:00:07]} 17. b3 {[%emt 0:01:25]} Rac8 {[%emt 0:02:29]} 18. Be3 {[%emt 0:30:26]} Rfd8 {[%emt 0:03:50]} 19. Rxd8+ {[%emt 0:05:47]} Rxd8 {[%emt 0:00:09]} 20. Nb5 {[%emt 0:01:47]} Nd5 {[%emt 0:03:22]} 21. Nxa7 {[%emt 0:07:26]} Nxa7 {[%emt 0:14:20]} 22. Bxa7 {[%emt 0:00:07]} Nc3 {[%emt 0:00:11]} 23. Re1 {[%emt 0:01:30]} Nxa2 {[%emt 0:01:05]} 24. Bb6 {[%emt 0:03:06]} Rd7 $15 {[%emt 0:02:29]} 25. e4 {[%emt 0:07:48]} Be6 {[%emt 0:01:05]} 26. e5 {[%emt 0:00:57]} Bxb3 {[%emt 0:03:59]} 27. Nd4 {[%emt 0:00:22]} Bd5 {[%emt 0:06:14]} 28. f4 {[%emt 0:02:36]} Bxh1 {[%emt 0:01:41]} 29. Kxh1 {[%emt 0:00:03]} h6 {[%emt 0:00:07]} 30. Ra1 {[%emt 0:01:19]} Nc3 {[%emt 0:00:13]} 31. Ra8+ {[%emt 0:00:23]} Kh7 {[%emt 0:00:05]} 32. Rd8 {[%emt 0:01:12]} Rxd8 {[%emt 0:01:46]} 33. Bxd8 {[%emt 0:00:05]} e6 {[%emt 0:00:42]} 34. Kg2 {[%emt 0:01:15]} Bf8 {[%emt 0:02:38]} 35. Ba5 {[%emt 0:00:56]} Nd5 {[%emt 0:00:08]} 36. Kf3 {[%emt 0:00:29]} Kg8 {[%emt 0:01:59]} 37. Nb5 {[%emt 0:00:59]} Bc5 {[%emt 0:01:38]} 38. Bd2 {[%emt 0:01:10]} h5 {[%emt 0:00:20]} 39. h3 {[%emt 0:00:18]} Kf8 {[%emt 0:00:21]} 40. g4 {[%emt 0:00:49]} hxg4+ {[%emt 0:00:19]} 41. hxg4 {[%emt 0:50:33]} Ke7 {[%emt 0:50:08]} 42. Ke4 {[%emt 0:00:00]} Kd7 {[%emt 0:00:00]} 43. f5 {[%emt 0:00:00]} Kc6 {[%emt 0:00:00]} 44. Nc3 {[%emt 0:00:00]} Nxc3+ {[%emt 0:00:00]} 45. Bxc3 {[%emt 0:00:00]} b5 {[%emt 0:00:00]} 46. Bb2 {[%emt 0:00:00]} b4 {[%emt 0:00:00]} 47. fxg6 {[%emt 0:00:00]} fxg6 {[%emt 0:00:00]} 48. Bc1 {[%emt 0:00:00]} Kb5 {[%emt 0:00:00]} 49. Kd3 {[%emt 0:00:00]} Be7 {[%emt 0:00:00]} 50. Kd4 {[%emt 0:00:00]} b3 {[%emt 0:00:00]} 51. Kc3 {[%emt 0:00:00]} Ka4 {[%emt 0:00:00]} 52. g5 {[%emt 0:00:00]} Bb4+ {[%emt 0:00:00]} 53. Kd3 {[%emt 0:00:00]} Ba3 {[%emt 0:00:00]} 54. Be3 {[%emt 0:00:00]} b2 {[%emt 0:00:00]} 55. Kc2 {[%emt 0:00:00]} Kb5 {[%emt 0:00:00]} 56. Kb1 {[%emt 0:00:00]} Kc4 {[%emt 0:00:00]} 57. Bb6 {[%emt 0:00:00]} Kd5 {[%emt 0:00:00]} 58. Ka2 {[%emt 0:00:00]} Kxe5 {[%emt 0:00:00]} 0-1

[Event "4NCL 2021-22"]
[Site "England"]
[Date "2022.03.27"]
[Round "6.10"]
[White "Lupulescu, Constantin"]
[Black "Taylor, Martin R"]
[Result "1-0"]
[ECO "A06"]
[WhiteElo "2620"]
[BlackElo "2343"]
[Annotator "ChessBase"]
[PlyCount "111"]
[EventDate "2021.11.27"]
[EventType "team-tourn"]
[EventCountry "ENG"]
[SourceTitle "playchess.com"]
[Source "ChessBase"]
[SourceQuality "1"]
[TimeControl "40/6000+30:3000+30"]

1. Nf3 {[%emt 0:00:03]} d5 {[%emt 0:00:18]} 2. e3 {[%emt 0:00:05]} Nf6 {[%emt 0:00:23]} 3. c4 {[%emt 0:00:27]} e6 {[%emt 0:01:31]} 4. b3 {[%emt 0:00:11]} Nbd7 {[%emt 0:00:55]} 5. Bb2 {[%emt 0:00:15]} c6 {[%emt 0:04:19]} 6. d4 {[%emt 0:00:49]} Ne4 {[%emt 0:00:43]} 7. Bd3 {[%emt 0:02:09]} f5 {[%emt 0:02:46]} 8. O-O {[%emt 0:01:57]} Bd6 {[%emt 0:00:51]} 9. Ba3 {[%emt 0:05:00]} Bxa3 {[%emt 0:07:35]} 10. Nxa3 {[%emt 0:00:30]} Qe7 {[%emt 0:03:00]} 11. Nc2 {[%emt 0:06:41]} b6 {[%emt 0:03:05]} 12. cxd5 {[%emt 0:20:20]} exd5 {[%emt 0:03:01]} 13. b4 {[%emt 0:01:18]} Bb7 {[%emt 0:21:30]} 14. Qc1 {[%emt 0:05:50]} O-O {[%emt 0:04:06]} 15. Qb2 {[%emt 0:01:24]} Rf6 {[%emt 0:07:10]} 16. g3 {[%emt 0:14:46]} Rh6 {[%emt 0:07:11]} 17. Nce1 {[%emt 0:06:39]} g5 {[%emt 0:10:49]} 18. Ng2 {[%emt 0:14:36]} Re6 {[%emt 0:09:50]} 19. Nd2 {[%emt 0:03:25]} a5 {[%emt 0:05:43]} 20. a3 {[%emt 0:01:30]} Rf6 {[%emt 0:04:49]} 21. f3 {[%emt 0:01:08]} Nd6 {[%emt 0:01:43]} 22. Rac1 {[%emt 0:04:41]} h6 {[%emt 0:03:04]} 23. Rfe1 {[%emt 0:02:58]} Re6 {[%emt 0:05:44]} 24. Nb3 {[%emt 0:06:38]} axb4 {[%emt 0:00:39]} 25. axb4 {[%emt 0:00:04]} Ra4 {[%emt 0:00:50]} 26. Nd2 {[%emt 0:02:01]} b5 {[%emt 0:00:17]} 27. Ra1 {[%emt 0:02:07]} Nb6 {[%emt 0:00:57]} 28. Rxa4 {[%emt 0:00:23]} Nxa4 {[%emt 0:00:05]} 29. Qc2 {[%emt 0:00:43]} Rf6 {[%emt 0:01:02]} 30. Nb3 {[%emt 0:02:49]} Nc4 {[%emt 0:00:10]} 31. Nc5 {[%emt 0:00:47]} Nxc5 {[%emt 0:00:06]} 32. bxc5 {[%emt 0:00:10]} Bc8 {[%emt 0:01:01]} 33. e4 {[%emt 0:00:09]} fxe4 {[%emt 0:00:16]} 34. fxe4 {[%emt 0:00:05]} dxe4 {[%emt 0:01:01]} 35. Rxe4 {[%emt 0:01:52]} Be6 {[%emt 0:00:53]} 36. Qe2 {[%emt 0:01:10]} Qd7 {[%emt 0:00:25]} 37. h4 {[%emt 0:00:21]} Bd5 {[%emt 0:00:29]} 38. Re8+ {[%emt 0:02:05]} Rf8 {[%emt 0:00:02]} 39. Re7 {[%emt 0:00:34]} Qh3 {[%emt 0:00:29]} 40. Be4 {[%emt 0:00:52]} Rf7 {[%emt 0:01:07]} 41. Rxf7 {[%emt 0:18:37]} Bxf7 {[%emt 0:17:14]} 42. Bxc6 {[%emt 0:07:22]} Qxg3 {[%emt 0:01:18]} 43. hxg5 {[%emt 0:01:48]} hxg5 {[%emt 0:05:45]} 44. Bxb5 {[%emt 0:00:33]} Qc3 {[%emt 0:05:54]} 45. Qg4 {[%emt 0:02:43]} Kf8 {[%emt 0:03:42]} 46. Bxc4 {[%emt 0:03:52]} Bxc4 {[%emt 0:05:48]} 47. Kh2 {[%emt 0:06:12]} Bf7 {[%emt 0:02:44]} 48. Qc8+ {[%emt 0:03:13]} Kg7 {[%emt 0:02:11]} 49. Qd8 {[%emt 0:00:06]} Kg6 {[%emt 0:01:59]} 50. Qd6+ {[%emt 0:00:33]} Kh5 {[%emt 0:01:58]} 51. c6 {[%emt 0:02:10]} Bg6 {[%emt 0:01:46]} 52. Qe6 {[%emt 0:06:06]} Bd3 {[%emt 0:03:39]} 53. Qf7+ {[%emt 0:00:46]} Kg4 {[%emt 0:02:16]} 54. Ne3+ {[%emt 0:00:42]} Kh4 {[%emt 0:00:08]} 55. Qf3 {[%emt 0:00:20]} Qb2+ {[%emt 0:01:06]} 56. Ng2+ {[%emt 0:00:05]} 1-0

[Event "4NCL 2021-22"]
[Site "England"]
[Date "2022.03.27"]
[Round "6.11"]
[White "Cox, John J"]
[Black "Parligras, Mircea-Emilian"]
[Result "0-1"]
[ECO "E55"]
[WhiteElo "2319"]
[BlackElo "2575"]
[Annotator "ChessBase"]
[PlyCount "76"]
[EventDate "2021.11.27"]
[EventType "team-tourn"]
[EventCountry "ENG"]
[SourceTitle "playchess.com"]
[Source "ChessBase"]
[SourceQuality "1"]
[TimeControl "40/6000+30:3000+30"]

1. c4 {[%emt 0:00:08]} e6 {[%emt 0:00:23]} 2. d4 {[%emt 0:00:50]} Nf6 {[%emt 0:00:38]} 3. Nc3 {[%emt 0:00:05]} Bb4 {[%emt 0:01:59]} 4. e3 {[%emt 0:00:05]} O-O {[%emt 0:00:21]} 5. Bd2 {[%emt 0:00:03]} d5 {[%emt 0:05:30]} 6. Nf3 {[%emt 0:00:46]} b6 {[%emt 0:01:28]} 7. Bd3 {[%emt 0:02:22]} dxc4 {[%emt 0:00:35]} 8. Bxc4 {[%emt 0:00:07]} Bb7 {[%emt 0:00:15]} 9. O-O {[%emt 0:00:12]} Nbd7 {[%emt 0:02:36]} 10. Qe2 {[%emt 0:00:32]} c5 {[%emt 0:02:26]} 11. Rfd1 {[%emt 0:07:35]} cxd4 {[%emt 0:05:09]} 12. Nxd4 {[%emt 0:01:18]} a6 {[%emt 0:03:37]} 13. a3 {[%emt 0:03:23]} Bd6 {[%emt 0:01:05]} 14. Be1 {[%emt 0:07:06]} Qe7 {[%emt 0:01:32]} 15. Rac1 {[%emt 0:02:18]} b5 {[%emt 0:02:46]} 16. Ba2 {[%emt 0:00:25]} Rac8 {[%emt 0:00:31]} 17. f3 {[%emt 0:13:11]} Rfd8 {[%emt 0:04:43]} 18. e4 {[%emt 0:01:53]} Bf4 {[%emt 0:12:43]} 19. Bd2 {[%emt 0:15:39]} Bb8 {[%emt 0:02:53]} 20. Be1 {[%emt 0:05:00]} Ne5 {[%emt 0:09:40]} 21. Bf2 {[%emt 0:04:54]} Ng6 {[%emt 0:01:40]} 22. Nb3 {[%emt 0:08:18]} Nf4 {[%emt 0:01:33]} 23. Qf1 {[%emt 0:00:13]} Nd7 {[%emt 0:02:49]} 24. Ne2 {[%emt 0:03:02]} Ng6 {[%emt 0:03:33]} 25. Rxc8 {[%emt 0:03:20]} Rxc8 {[%emt 0:00:34]} 26. Rc1 {[%emt 0:03:10]} Rd8 {[%emt 0:10:45]} 27. Na5 {[%emt 0:12:04]} Ba8 {[%emt 0:01:01]} 28. Nc6 {[%emt 0:02:30]} Bxc6 {[%emt 0:01:45]} 29. Rxc6 {[%emt 0:00:03]} Nde5 {[%emt 0:00:15]} 30. Rxa6 {[%emt 0:06:49]} Nd3 {[%emt 0:00:47]} 31. Be3 {[%emt 0:01:14]} Qb7 {[%emt 0:06:32]} 32. Rb6 {[%emt 0:01:19]} Qc7 {[%emt 0:00:59]} 33. Rxb8 {[%emt 0:05:10]} Qxb8 {[%emt 0:00:04]} 34. Nd4 {[%emt 0:00:59]} Nge5 {[%emt 0:05:48]} 35. f4 {[%emt 0:00:53]} Ng4 {[%emt 0:00:31]} 36. Qxd3 {[%emt 0:00:48]} Qb6 {[%emt 0:01:05]} 37. Qxb5 {[%emt 0:00:29]} Qxb5 {[%emt 0:00:09]} 38. Nxb5 {[%emt 0:00:02]} Rd1# {[%emt 0:00:07]} 0-1

[Event "4NCL 2021-22"]
[Site "England"]
[Date "2022.03.27"]
[Round "6.12"]
[White "Cyborowski, Lukasz"]
[Black "Griffiths, Ryan Rhys"]
[Result "0-1"]
[ECO "B13"]
[WhiteElo "2494"]
[BlackElo "2352"]
[Annotator "ChessBase"]
[PlyCount "148"]
[EventDate "2021.11.27"]
[EventType "team-tourn"]
[EventCountry "ENG"]
[SourceTitle "playchess.com"]
[Source "ChessBase"]
[SourceQuality "1"]
[TimeControl "40/6000+30:3000+30"]

1. Nf3 {[%emt 0:00:05]} c5 {[%emt 0:07:32]} 2. e3 {[%emt 0:00:38]} Nf6 {[%emt 0:04:51]} 3. d4 {[%emt 0:02:09]} cxd4 {[%emt 0:00:13]} 4. exd4 {[%emt 0:00:17]} d5 {[%emt 0:00:13]} 5. c3 {[%emt 0:02:25]} Nc6 {[%emt 0:02:46]} 6. Bf4 {[%emt 0:01:40]} e6 {[%emt 0:11:11]} 7. Nbd2 {[%emt 0:03:56]} Bd6 {[%emt 0:00:09]} 8. Bxd6 {[%emt 0:03:42]} Qxd6 {[%emt 0:00:15]} 9. Bd3 {[%emt 0:00:10]} O-O {[%emt 0:01:35]} 10. Qe2 {[%emt 0:07:25]} Nd7 {[%emt 0:01:44]} 11. O-O {[%emt 0:07:32]} e5 {[%emt 0:01:51]} 12. dxe5 {[%emt 0:02:47]} Ndxe5 {[%emt 0:00:21]} 13. Nxe5 {[%emt 0:01:03]} Nxe5 {[%emt 0:00:54]} 14. Rae1 {[%emt 0:07:27]} Re8 {[%emt 0:20:19]} 15. Qe3 {[%emt 0:26:44]} Bd7 {[%emt 0:02:33]} 16. Nf3 {[%emt 0:02:35]} Nc4 {[%emt 0:10:44]} 17. Qc1 {[%emt 0:03:10]} Qb6 {[%emt 0:01:56]} 18. Bxc4 {[%emt 0:20:57]} dxc4 {[%emt 0:00:46]} 19. Nd4 {[%emt 0:00:04]} Qf6 {[%emt 0:06:55]} 20. Qd2 {[%emt 0:03:20]} Bc6 {[%emt 0:04:29]} 21. Rxe8+ {[%emt 0:06:12]} Rxe8 {[%emt 0:00:13]} 22. Re1 {[%emt 0:00:08]} Rxe1+ {[%emt 0:05:08]} 23. Qxe1 {[%emt 0:00:04]} Qg6 {[%emt 0:01:20]} 24. f3 {[%emt 0:00:48]} h5 {[%emt 0:01:33]} 25. h4 {[%emt 0:01:04]} Qf6 {[%emt 0:12:20]} 26. Qg3 {[%emt 0:00:11]} Kh7 {[%emt 0:00:10]} 27. Kf1 {[%emt 0:02:41]} a6 {[%emt 0:02:48]} 28. Kf2 {[%emt 0:01:43]} Bd7 {[%emt 0:01:56]} 29. Kg1 {[%emt 0:00:59]} Qb6 {[%emt 0:01:43]} 30. Qf2 {[%emt 0:00:50]} g6 {[%emt 0:02:05]} 31. Kh2 {[%emt 0:00:39]} Qd6+ {[%emt 0:00:46]} 32. Qg3 {[%emt 0:00:28]} Qb6 {[%emt 0:00:49]} 33. Qe5 {[%emt 0:00:42]} Qd8 {[%emt 0:01:51]} 34. Kg3 {[%emt 0:00:19]} Kg8 {[%emt 0:00:32]} 35. Qd6 {[%emt 0:01:27]} Kg7 {[%emt 0:00:12]} 36. Qe5+ {[%emt 0:01:04]} Kg8 {[%emt 0:00:06]} 37. Qd6 {[%emt 0:00:05]} Kg7 {[%emt 0:00:04]} 38. Ne2 {[%emt 0:00:06]} Qe8 {[%emt 0:01:05]} 39. Kf2 {[%emt 0:00:05]} Kg8 {[%emt 0:01:00]} 40. Qd4 {[%emt 0:01:29]} b5 {[%emt 0:01:38]} 41. Qd6 {[%emt 0:05:10]} Bc6 {[%emt 0:07:41]} 42. Nd4 {[%emt 0:07:50]} Bb7 {[%emt 0:00:53]} 43. Nc2 {[%emt 0:04:29]} Kg7 {[%emt 0:02:46]} 44. Ne3 {[%emt 0:15:48]} Qc6 {[%emt 0:09:46]} 45. Qe7 {[%emt 0:03:29]} Kg8 {[%emt 0:04:13]} 46. Nc2 {[%emt 0:01:42]} Qd5 {[%emt 0:00:33]} 47. Nd4 {[%emt 0:00:05]} Kg7 {[%emt 0:01:03]} 48. Ke3 {[%emt 0:01:36]} Kg8 {[%emt 0:01:29]} 49. Kf4 {[%emt 0:00:28]} Kh7 {[%emt 0:02:57]} 50. Qf8 {[%emt 0:02:46]} Ba8 {[%emt 0:01:54]} 51. Qe7 {[%emt 0:04:39]} Bb7 {[%emt 0:00:47]} 52. a3 {[%emt 0:00:05]} Kg8 {[%emt 0:01:57]} 53. Ke3 {[%emt 0:01:54]} Kg7 {[%emt 0:00:38]} 54. Kd2 {[%emt 0:00:08]} Bc8 {[%emt 0:01:14]} 55. Ke3 {[%emt 0:00:03]} Bb7 {[%emt 0:00:44]} 56. Ke2 {[%emt 0:00:04]} Bc8 {[%emt 0:00:23]} 57. Kd2 {[%emt 0:01:54]} Bb7 {[%emt 0:02:07]} 58. Kc1 {[%emt 0:00:17]} Bc8 {[%emt 0:00:29]} 59. Kb1 {[%emt 0:00:20]} Bf5+ {[%emt 0:00:54]} 60. Ka2 {[%emt 0:00:07]} Bd3 {[%emt 0:01:09]} 61. g3 {[%emt 0:01:45]} Kg8 {[%emt 0:01:54]} 62. a4 {[%emt 0:02:25]} bxa4 {[%emt 0:01:39]} 63. Ka3 {[%emt 0:00:03]} Bf5 {[%emt 0:01:03]} 64. Kxa4 {[%emt 0:02:44]} Bc2+ {[%emt 0:01:09]} 65. Kb4 {[%emt 0:00:04]} Bd1 {[%emt 0:01:39]} 66. Qc5 {[%emt 0:02:20]} Qb7+ {[%emt 0:02:07]} 67. Kxc4 {[%emt 0:00:33]} Qxb2 {[%emt 0:00:48]} 68. Kd3 {[%emt 0:00:19]} Qf2 {[%emt 0:01:39]} 69. Qc8+ {[%emt 0:01:50]} Kg7 {[%emt 0:00:17]} 70. Ne6+ {[%emt 0:00:38]} Kf6 {[%emt 0:03:00]} 71. Ng5 {[%emt 0:00:02]} Bc2+ {[%emt 0:02:44]} 72. Kc4 {[%emt 0:00:05]} Qe2+ {[%emt 0:01:00]} 73. Kc5 {[%emt 0:00:05]} Qb5+ {[%emt 0:00:35]} 74. Kd6 {[%emt 0:00:09]} Qd3+ {[%emt 0:00:21]} 0-1

[Event "4NCL 2021-22"]
[Site "England"]
[Date "2022.03.27"]
[Round "6.13"]
[White "Sowray, Peter J"]
[Black "Jaracz, Pawel"]
[Result "0-1"]
[ECO "E27"]
[WhiteElo "2226"]
[BlackElo "2459"]
[Annotator "ChessBase"]
[PlyCount "74"]
[EventDate "2021.11.27"]
[EventType "team-tourn"]
[EventCountry "ENG"]
[SourceTitle "playchess.com"]
[Source "ChessBase"]
[SourceQuality "1"]
[TimeControl "40/6000+30:3000+30"]

1. d4 {[%emt 0:00:07]} Nf6 {[%emt 0:00:14]} 2. c4 {[%emt 0:00:08]} e6 {[%emt 0:00:08]} 3. Nc3 {[%emt 0:00:13]} Bb4 {[%emt 0:00:12]} 4. a3 {[%emt 0:00:17]} Bxc3+ {[%emt 0:00:17]} 5. bxc3 {[%emt 0:00:10]} O-O {[%emt 0:02:15]} 6. f3 {[%emt 0:01:48]} d5 {[%emt 0:00:07]} 7. cxd5 {[%emt 0:01:35]} exd5 {[%emt 0:00:04]} 8. e3 {[%emt 0:00:13]} Nh5 {[%emt 0:09:15]} 9. Qc2 {[%emt 0:04:39]} Re8 {[%emt 0:01:40]} 10. g4 {[%emt 0:01:48]} Nf4 {[%emt 0:00:50]} 11. h4 {[%emt 0:00:37]} c5 {[%emt 0:02:34]} 12. Kf2 {[%emt 0:04:20]} Ne6 {[%emt 0:03:17]} 13. Bd3 {[%emt 0:06:48]} Nf8 {[%emt 0:00:53]} 14. dxc5 {[%emt 0:07:54]} Nbd7 {[%emt 0:02:21]} 15. c4 {[%emt 0:03:15]} Nxc5 {[%emt 0:01:40]} 16. Bb2 {[%emt 0:04:15]} Qe7 {[%emt 0:12:32]} 17. Re1 {[%emt 0:02:44]} dxc4 {[%emt 0:04:00]} 18. Bxc4 {[%emt 0:02:07]} Be6 {[%emt 0:00:13]} 19. Nh3 {[%emt 0:12:44]} Rac8 {[%emt 0:14:19]} 20. Nf4 {[%emt 0:04:55]} Bxc4 {[%emt 0:02:40]} 21. Qxc4 {[%emt 0:00:14]} Red8 {[%emt 0:09:57]} 22. Qb4 {[%emt 0:10:28]} Nfe6 {[%emt 0:06:51]} 23. Kg3 {[%emt 0:01:31]} Rd6 {[%emt 0:10:13]} 24. Be5 {[%emt 0:03:28]} Rd7 {[%emt 0:01:54]} 25. Rd1 {[%emt 0:04:37]} Rcd8 {[%emt 0:04:31]} 26. Rxd7 {[%emt 0:01:18]} Qxd7 {[%emt 0:00:04]} 27. Nxe6 {[%emt 0:03:57]} Nxe6 {[%emt 0:00:11]} 28. Rb1 {[%emt 0:01:42]} b6 {[%emt 0:00:45]} 29. a4 {[%emt 0:09:21]} Qd3 {[%emt 0:02:28]} 30. Qb3 {[%emt 0:01:43]} Qe2 {[%emt 0:01:09]} 31. Qc3 {[%emt 0:03:51]} Rd2 {[%emt 0:04:22]} 32. Qc8+ {[%emt 0:00:07]} Nf8 {[%emt 0:00:23]} 33. Kf4 {[%emt 0:00:13]} Rc2 {[%emt 0:02:48]} 34. Qd8 {[%emt 0:02:51]} Qh2+ {[%emt 0:01:08]} 35. Ke4 {[%emt 0:04:42]} Rc4+ {[%emt 0:00:17]} 36. Bd4 {[%emt 0:00:01]} Qc2+ {[%emt 0:00:19]} 37. Kd5 {[%emt 0:00:02]} Rc8 {[%emt 0:03:06]} 0-1